bitfinex/quotes_ETHUSD_20220310
["timestamp","ask_amount","ask_price","bid_price","bid_amount"]
[1646896109921,4.4655,2593.2,2592.7,0.07894898]
[1646896110119,1.10095776,2592.7,2592.6,1.1732]
[1646896110318,1.10095776,2592.7,2592.3,0.0785903]
[1646896111170,1.10095776,2592.7,2592.1,4.4537]
[1646896111171,1.02947678,2592.6,2592.1,4.4537]
[1646896111372,1.02947678,2592.6,2592.0,7.27]
[1646896111373,0.06146588,2592.5,2592.0,7.27]
[1646896111575,0.06146588,2592.5,2592.0,0.01239024]
[1646896111576,1.09008904,2592.1,2592.0,0.01239024]
[1646896111774,2.95897588,2592.5,2592.0,0.01239024]
[1646896112376,3.5,2592.4,2592.0,0.01239024]
[1646896112578,0.05691161,2592.3,2591.7,2.41736]
[1646896112775,1.18961329,2592.0,2591.6,2.7935]
[1646896112975,1.18961329,2592.0,2591.8,0.04035807]
[1646896113189,4.68961329,2592.0,2591.8,0.04035807]
[1646896113475,1.24062079,2592.0,2591.6,0.04149492]
[1646896113874,1.24062079,2592.0,2591.4,0.04263176]
[1646896113875,1.9318,2591.9,2591.4,0.04263176]
[1646896114074,1.9318,2591.9,2591.2,0.07937104]
[1646896114075,1.9318,2591.9,2591.3,0.93855144]
[1646896114317,1.9318,2591.9,2591.3,0.04320019]
[1646896114517,1.9318,2591.9,2591.4,0.04263176]
[1646896114719,1.9318,2591.9,2591.3,0.04320019]
[1646896115117,1.9318,2591.9,2591.5,0.00344194]
[1646896115517,1.9318,2591.9,2591.6,0.04149492]
[1646896116117,1.9318,2591.9,2591.6,0.03059492]
[1646896116318,1.9318,2591.9,2591.6,0.03403673]
[1646896117325,1.9318,2591.9,2591.6,0.03059492]
[1646896117523,1.9318,2591.9,2591.6,0.03403673]
[1646896118371,1.01612227,2591.7,2591.6,0.03403673]
[1646896118570,1.01612227,2591.7,2591.6,0.03059492]
[1646896118571,0.96589,2591.7,2591.6,0.03059492]
[1646896119874,0.96589,2591.7,2591.6,1.22347116]
[1646896120075,0.05088307,2592.2,2591.6,1.22347116]
[1646896120275,0.96561,2592.3,2591.7,0.06289333]
[1646896121073,1.0670026,2592.2,2591.7,0.06289333]
[1646896121273,1.0670026,2592.2,2591.9,0.00305431]
[1646896121274,1.93158,2592.1,2591.9,0.00305431]
[1646896122125,1.93158,2592.1,2591.6,0.03059492]
[1646896122327,1.14707338,2591.8,2591.6,0.03059492]
[1646896122526,0.96592,2591.7,2591.6,0.03059492]
[1646896124425,0.96460637,2591.7,2591.6,0.03059492]
[1646896125027,1.99045015,2592.2,2591.8,1.19329706]
[1646896125028,0.96574,2592.0,2591.8,1.19329706]
[1646896126064,0.96574,2592.0,2591.9,3.5]
[1646896126266,7.12536832,2593.1,2592.0,0.07118658]
[1646896126267,0.96562,2592.3,2592.0,0.07118658]
[1646896126464,2.43119,2592.6,2592.0,0.62618658]
[1646896126665,2.43119,2592.6,2592.0,0.855]
[1646896126870,2.43119,2592.6,2592.1,0.07535149]
[1646896127171,2.43119,2592.6,2592.2,0.00342484]
[1646896127172,1.00245257,2592.5,2592.2,0.00342484]
[1646896127369,0.96558,2592.4,2592.2,0.00342484]
[1646896127573,1.02773723,2592.4,2592.2,0.00342484]
[1646896128170,1.02773723,2592.4,2591.7,0.07055878]
[1646896128372,1.02773723,2592.4,2592.2,0.00342484]
[1646896129416,1.02773723,2592.4,2591.7,0.07055878]
[1646896129617,1.02773723,2592.4,2592.2,0.00342484]
[1646896130517,1.20874525,2592.1,2591.7,1.24445769]
[1646896130716,1.20874525,2592.1,2591.8,0.01370141]
[1646896131821,1.20874525,2592.1,2591.7,1.24445769]
[1646896132022,0.96574,2592.0,2591.8,0.00308277]
[1646896133066,1.0225527,2592.0,2591.6,0.03059492]
[1646896133268,1.0225527,2592.0,2591.8,0.00308283]
[1646896133466,1.09852873,2591.9,2591.8,0.00308283]
[1646896134171,1.09852873,2591.9,2591.6,0.03059492]
[1646896134474,1.09852873,2591.9,2591.7,0.00308289]
[1646896134475,1.98654532,2591.8,2591.7,0.00308289]
[1646896135376,1.98654532,2591.8,2591.6,0.03059492]
[1646896135576,0.04917568,2591.7,2591.6,0.03348096]
[1646896136572,0.04917568,2591.7,2591.6,0.03059492]
[1646896137020,1.01508568,2591.7,2591.6,0.03059492]
[1646896137223,0.96591,2591.7,2591.6,0.03059492]
[1646896137921,1.22210972,2592.2,2591.6,0.03059492]
[1646896138119,0.96572,2592.0,2591.6,0.03059492]
[1646896138320,0.05940972,2592.2,2591.6,0.03059492]
[1646896139221,1.07909936,2592.2,2591.8,0.00277605]
[1646896139421,2.04472936,2592.2,2591.8,0.00277605]
[1646896139620,1.02503972,2592.2,2591.8,0.00277605]
[1646896139821,1.02503972,2592.2,2591.8,0.06670221]
[1646896139822,0.96563,2592.2,2591.8,0.06670221]
[1646896140226,0.96563,2592.2,2591.8,0.06392616]
[1646896140482,0.96563,2592.2,2591.9,0.00277594]
[1646896140870,2.18521647,2592.2,2591.9,0.00277594]
[1646896141278,2.18521647,2592.2,2591.8,0.06392616]
[1646896141475,2.18521647,2592.2,2591.9,0.00277589]
[1646896142575,2.18521647,2592.2,2591.8,0.06392616]
[1646896142778,2.18521647,2592.2,2591.9,0.00280059]
[1646896142976,0.96563,2592.2,2591.9,0.00280059]
[1646896143779,0.96563,2592.2,2591.8,0.06392616]
[1646896143978,0.96563,2592.2,2591.9,0.00280059]
[1646896144216,1.90913198,2592.2,2591.9,0.00280059]
[1646896145018,1.90913198,2592.2,2591.7,0.3]
[1646896145220,1.90913198,2592.2,2591.9,0.00280059]
[1646896146120,1.90913198,2592.2,2591.7,1.02385845]
[1646896146318,1.90913198,2592.2,2591.9,0.00279504]
[1646896147325,1.90913198,2592.2,2591.7,1.02385845]
[1646896147624,1.90913198,2592.2,2591.9,0.00279504]
[1646896148568,1.90913198,2592.2,2591.7,0.07189305]
[1646896148770,1.9692672,2592.2,2591.9,0.00279504]
[1646896149769,1.9692672,2592.2,2591.5,0.01214182]
[1646896149770,1.06882821,2591.7,2591.5,0.00096]
[1646896149970,2.03467821,2591.7,2591.5,0.01118682]
[1646896150170,0.96585,2591.7,2591.5,0.01118682]
[1646896150871,0.96585,2591.7,2591.6,7.7172]
[1646896151271,0.96585,2591.7,2591.6,8.0172]
[1646896151471,3.02468587,2591.9,2591.6,8.0172]
[1646896152327,0.00127038,2591.9,2591.6,8.01999661]
[1646896152529,0.00127038,2591.9,2591.7,3.5]
[1646896152728,0.00127038,2591.9,2591.6,8.57499661]
[1646896153428,0.00127038,2591.9,2591.6,12.0722]
[1646896153628,0.00127038,2591.9,2591.8,0.96092681]
[1646896153831,0.00127038,2591.9,2591.8,1.26092681]
[1646896154731,0.00127038,2591.9,2591.8,1.25977624]
[1646896155573,0.05660064,2592.3,2591.9,161.49872962]
[1646896155774,0.05660064,2592.3,2591.9,110.5]
[1646896155969,0.05660064,2592.3,2591.9,111.055]
[1646896157173,0.96557,2592.4,2592.2,1.08613611]
[1646896157373,0.96557,2592.4,2592.2,1.38613611]
[1646896157572,0.96557,2592.4,2592.2,0.3]
[1646896157774,0.96557,2592.4,2592.0,0.00279602]
[1646896158173,0.96557,2592.4,2592.0,3.5]
[1646896158376,0.96557,2592.4,2592.1,0.55779591]
[1646896158574,0.05363865,2592.6,2592.2,4.59390201]
[1646896158774,0.05363865,2592.6,2592.2,5.44890201]
[1646896159233,0.05016367,2592.9,2592.2,5.44890201]
[1646896159635,0.87711362,2592.8,2592.3,0.00279569]
[1646896159836,0.87711362,2592.8,2592.3,0.55779569]
[1646896160034,0.87711362,2592.8,2592.4,3.5]
[1646896160238,0.87711362,2592.8,2592.4,3.8]
[1646896160838,0.87711362,2592.8,2592.5,0.00279546]
[1646896161438,0.05016367,2592.9,2592.5,0.00279546]
[1646896161840,0.04856375,2592.9,2592.4,4.76528]
[1646896162042,0.04856375,2592.9,2592.5,0.00279541]
[1646896162983,0.04856375,2592.9,2592.4,5.32028]
[1646896163273,0.04856375,2592.9,2592.6,0.00279535]
[1646896163274,1.13397318,2592.9,2592.6,0.00279535]
[1646896164073,2.09939318,2592.9,2592.4,4.355]
[1646896164274,1.01398375,2592.9,2592.4,4.355]
[1646896164474,1.01398375,2592.9,2592.6,0.0027953]
[1646896165074,0.04856375,2592.9,2592.6,0.9349953]
[1646896165275,0.04856375,2592.9,2592.6,1.2322]
[1646896165675,0.04856375,2592.9,2592.6,1.2349953]
[1646896166379,3.24927535,2593.0,2592.6,2.12155187]
[1646896166575,2.07125254,2593.0,2592.6,2.67375657]
[1646896166828,2.07125254,2593.0,2592.6,2.67655187]
[1646896167729,3.25759878,2593.0,2592.6,2.67375657]
[1646896167928,3.25759878,2593.0,2592.7,0.00279525]
[1646896168530,0.06293069,2592.9,2592.7,0.00279525]
[1646896168932,0.06293069,2592.9,2592.3,0.01118267]
[1646896169128,0.06293069,2592.9,2592.1,6.5732]
[1646896169129,0.99048478,2592.5,2592.1,6.8732]
[1646896169330,0.99048478,2592.5,2592.3,0.01118267]
[1646896169534,0.06293069,2592.9,2592.3,0.01118267]
[1646896170030,0.05755852,2592.7,2592.3,0.01118267]
[1646896170230,0.05755852,2592.7,2592.1,0.00096]
[1646896170471,0.96557,2592.6,2592.5,0.00279546]
[1646896171371,0.96557,2592.6,2592.0,2.66561728]
[1646896171574,0.96557,2592.6,2592.4,0.00280251]
[1646896172677,0.96557,2592.6,2592.0,6.46465728]
[1646896172877,0.96557,2592.6,2592.4,0.89579586]
[1646896173177,0.05755852,2592.7,2592.4,1.19579586]
[1646896173378,2.07125254,2593.0,2592.5,3.5]
[1646896173577,2.07125254,2593.0,2592.6,0.555]
[1646896173977,2.07125254,2593.0,2592.6,0.855]
[1646896174225,0.9654,2592.9,2592.6,0.85780229]
[1646896174424,2.07125254,2593.0,2592.6,0.85780229]
[1646896174625,2.07125254,2593.0,2592.7,3.5]
[1646896174824,2.07125254,2593.0,2592.8,0.555]
[1646896175024,2.07125254,2593.0,2592.8,0.6281295]
[1646896175225,2.07125254,2593.0,2592.8,0.9281295]
[1646896175423,0.05786895,2593.6,2593.0,48.92874746]
[1646896175625,0.05786895,2593.6,2593.4,0.96709469]
[1646896176026,1.93008,2594.2,2593.4,2.57579469]
[1646896176027,0.06332038,2594.1,2593.4,2.57579469]
[1646896176430,0.06039038,2594.3,2593.4,2.57579469]
[1646896176627,0.06039038,2594.3,2593.5,3.5]
[1646896176834,1.02211926,2594.3,2593.8,0.92087395]
[1646896177031,0.05663721,2594.2,2593.8,0.92087395]
[1646896177431,0.05663721,2594.2,2593.8,0.3]
[1646896177632,0.5,2594.0,2593.8,0.3]
[1646896177829,0.5,2594.0,2593.6,0.855]
[1646896178480,0.96498,2594.1,2593.7,0.98815552]
[1646896178674,0.96498,2594.1,2593.7,2.04065552]
[1646896178873,0.96498,2594.1,2593.7,1.0525]
[1646896179273,0.05427664,2594.0,2593.7,1.0525]
[1646896179674,0.05427664,2594.0,2593.6,0.3]
[1646896180175,0.05427664,2594.0,2593.4,0.6285699]
[1646896180176,1.84375816,2593.9,2593.4,1.97528571]
[1646896180375,1.84375816,2593.9,2593.4,0.9285699]
[1646896180575,1.84375816,2593.9,2593.4,0.855]
[1646896181725,1.22293628,2593.5,2593.4,0.855]
[1646896181929,0.04983271,2593.5,2593.2,0.3]
[1646896182131,0.04983271,2593.5,2593.1,1.457]
[1646896182330,0.96519,2593.6,2593.1,0.36168691]
[1646896182531,0.06227724,2594.3,2593.1,0.3]
[1646896182730,0.06227724,2594.3,2593.0,6.06220481]
[1646896182929,0.06227724,2594.3,2593.5,0.93060308]
[1646896182930,1.21473281,2594.0,2593.5,0.93060308]
[1646896183333,0.06146559,2593.9,2593.0,6.06220481]
[1646896183530,1.21473281,2594.0,2593.0,6.05940997]
[1646896183531,0.04896033,2593.7,2593.0,6.05940997]
[1646896183731,0.04896033,2593.7,2593.0,6.0733841]
[1646896184332,1.15038208,2593.5,2593.0,7.14752923]
[1646896184633,1.15038208,2593.5,2593.0,2.4774551]
[1646896184634,0.05977083,2593.4,2593.0,2.4774551]
[1646896184831,1.15038208,2593.5,2593.0,2.48024994]
[1646896185877,1.15038208,2593.5,2593.0,2.4774551]
[1646896186073,1.15038208,2593.5,2593.0,2.48025004]
[1646896186274,0.5,2593.1,2593.0,5.98025004]
[1646896186475,0.05997783,2593.7,2593.1,50.5]
[1646896186676,0.05997783,2593.7,2593.0,10.19335004]
[1646896186878,0.05997783,2593.7,2593.0,13.69335004]
[1646896187078,0.05997783,2593.7,2593.0,14.2455551]
[1646896187281,0.05997783,2593.7,2593.0,10.74835004]
[1646896187479,1.15627729,2593.5,2593.0,10.74835004]
[1646896187679,1.15627729,2593.5,2593.0,9.67420491]
[1646896187880,1.15627729,2593.5,2593.0,8.70909491]
[1646896188280,1.15627729,2593.5,2593.0,8.15129997]
[1646896188482,1.15627729,2593.5,2593.0,9.11921491]
[1646896189083,0.05760517,2593.4,2593.0,8.15409491]
[1646896189527,0.05760517,2593.4,2593.0,8.15129997]
[1646896189726,0.05760517,2593.4,2593.0,8.15409489]
[1646896190327,0.96526,2593.3,2593.0,8.15409489]
[1646896190530,0.06055987,2593.2,2593.0,8.15409489]
[1646896190729,0.06055987,2593.2,2593.0,8.15129997]
[1646896190929,0.06055987,2593.2,2593.0,8.15409489]
[1646896191931,0.06055987,2593.2,2593.0,8.15129997]
[1646896192131,0.06055987,2593.2,2593.0,8.15409489]
[1646896192632,0.06055987,2593.2,2593.0,7.71589492]
[1646896193078,0.06055987,2593.2,2593.0,8.0131]
[1646896193281,0.06055987,2593.2,2593.0,8.01589493]
[1646896193480,0.93135739,2593.1,2593.0,7.71589493]
[1646896193880,0.93135739,2593.1,2592.6,0.01118138]
[1646896193881,26.5,2593.0,2592.6,0.01118138]
[1646896194382,26.5,2593.0,2592.2,0.00096]
[1646896194383,0.96561,2592.8,2592.2,0.00096]
[1646896194580,0.96561,2592.8,2592.1,4.2289]
[1646896194778,0.96561,2592.8,2592.2,7.7147]
[1646896195183,1.99490926,2592.8,2592.2,8.0147]
[1646896196929,1.99490926,2592.8,2592.4,0.00341759]
[1646896197533,0.96561,2592.8,2592.4,0.00341759]
[1646896197930,0.96561,2592.8,2592.2,8.0147]
[1646896198130,0.96561,2592.8,2592.5,0.00341745]
[1646896199030,0.96561,2592.8,2592.2,7.7147]
[1646896199231,0.96561,2592.8,2592.2,8.0147]
[1646896199431,0.96561,2592.8,2592.5,0.00341739]
[1646896200232,0.96561,2592.8,2592.2,8.0147]
[1646896200486,0.96561,2592.8,2592.5,0.00341739]
[1646896201476,0.96561,2592.8,2592.2,8.0147]
[1646896201677,0.96561,2592.8,2592.5,0.00307565]
[1646896202683,1.20829078,2592.7,2592.2,7.7147]
[1646896202882,1.20829078,2592.7,2592.5,0.00307565]
[1646896202883,1.93137,2592.6,2592.5,0.00307565]
[1646896203683,1.9861384,2592.6,2592.5,0.00307565]
[1646896203886,1.9861384,2592.6,2592.2,7.7147]
[1646896204083,1.97636354,2592.6,2592.4,0.00307577]
[1646896204326,0.04877123,2592.5,2592.4,0.00307577]
[1646896204529,1.98015123,2592.5,2592.4,0.00307577]
[1646896205129,1.98015123,2592.5,2592.2,7.6647]
[1646896205334,1.98015123,2592.5,2592.3,0.00273327]
[1646896205532,0.0513604,2592.4,2592.3,0.00273327]
[1646896205730,0.0513604,2592.4,2592.2,7.6647]
[1646896205731,46.5,2592.3,2592.2,7.6647]
[1646896206329,46.5,2592.3,2592.2,1.86873]
[1646896206330,47.59313206,2592.3,2592.2,1.86873]
[1646896207136,0.96598,2592.2,2591.4,0.07367256]
[1646896207435,0.047634,2592.0,2591.4,0.07271256]
[1646896208478,0.96598,2591.9,2591.4,0.07271256]
[1646896209077,0.96598,2591.9,2591.6,0.00341181]
[1646896209878,0.96598,2591.9,2591.4,0.07271256]
[1646896210078,0.96598,2591.9,2591.6,0.00341174]
[1646896211079,0.96598,2591.9,2591.4,0.07271256]
[1646896211279,0.96598,2591.9,2591.6,0.00341174]
[1646896212130,0.96598,2591.9,2591.6,1.15984533]
[1646896212331,0.96598,2591.9,2591.6,0.3]
[1646896212530,0.96598,2591.9,2591.6,0.00341174]
[1646896213431,0.96598,2591.9,2591.4,0.07271256]
[1646896213834,0.96598,2591.9,2591.6,0.00303645]
[1646896214730,0.96598,2591.9,2591.4,1.29447002]
[1646896214929,0.96598,2591.9,2591.6,0.00303645]
[1646896215980,0.96598,2591.9,2591.4,1.29447002]
[1646896216178,0.96598,2591.9,2591.6,0.00303645]
[1646896216984,0.96598,2591.9,2591.6,0.97433645]
[1646896217185,0.96598,2591.9,2591.6,0.9713]
[1646896217389,1.29676087,2592.2,2591.6,1.27403613]
[1646896217390,2.2154,2592.2,2591.6,1.27403613]
[1646896217587,0.04799085,2592.5,2591.7,0.07574919]
[1646896217588,1.26199085,2592.5,2591.7,0.07574919]
[1646896217786,1.26199085,2592.5,2591.9,1.11712346]
[1646896217987,0.04799085,2592.5,2591.9,1.11712346]
[1646896218292,0.05123464,2592.7,2591.9,1.41712346]
[1646896218486,0.96559,2592.5,2592.1,0.00273566]
[1646896219524,0.96559,2592.5,2591.9,1.41712346]
[1646896219728,0.96559,2592.5,2592.2,0.00273555]
[1646896220627,0.96559,2592.5,2591.9,1.11712346]
[1646896221028,0.96559,2592.5,2592.2,0.00279552]
[1646896221832,0.96559,2592.5,2591.7,0.07670919]
[1646896222032,0.05383814,2592.4,2591.7,0.07574919]
[1646896222233,1.93164,2592.3,2592.2,0.00279552]
[1646896223085,1.93164,2592.3,2591.7,1.41484897]
[1646896223287,1.93164,2592.3,2592.1,0.00279557]
[1646896224384,1.93164,2592.3,2591.7,1.41484897]
[1646896224583,1.93164,2592.3,2592.1,0.00278213]
[1646896224785,0.04272678,2592.2,2592.1,0.00278213]
[1646896225187,1.93164,2592.3,2592.1,0.00278213]
[1646896225385,1.93164,2592.3,2591.7,1.49544587]
[1646896225585,1.97538377,2592.3,2591.7,1.41484897]
[1646896225792,1.97538377,2592.3,2592.0,0.00278219]
[1646896225993,1.93164,2592.3,2592.0,0.00278219]
[1646896226290,0.050696,2592.2,2592.0,0.00278219]
[1646896226728,0.96593,2592.0,2591.5,1.488]
[1646896226933,0.96593,2592.0,2591.6,0.01113063]
[1646896227833,0.96593,2592.0,2591.5,1.04229584]
[1646896228237,0.96593,2592.0,2591.7,0.0027856]
[1646896228637,0.04899559,2591.9,2591.7,0.0027856]
[1646896229035,0.04899559,2591.9,2591.5,1.34229584]
[1646896229036,1.93182,2591.8,2591.5,1.34229584]
[1646896229237,1.93182,2591.8,2591.7,0.0027856]
[1646896230236,1.93182,2591.8,2591.5,0.3]
[1646896230499,1.93182,2591.8,2591.6,0.00278565]
[1646896231486,1.93182,2591.8,2591.5,1.47799544]
[1646896231685,1.93182,2591.8,2591.6,0.00278502]
[1646896231891,1.93182,2591.8,2591.6,0.00133574]
[1646896232091,0.9659,2591.9,2591.6,0.00133574]
[1646896232291,0.0485547,2592.0,2591.6,0.00133574]
[1646896232492,3.8477,2592.9,2591.6,3.58535127]
[1646896232493,0.049528,2592.6,2591.6,3.58535127]
[1646896232692,2.2925,2592.8,2591.8,0.06996]
[1646896232693,1.1421,2592.8,2591.8,0.06996]
[1646896232890,1.1421,2592.8,2591.9,0.62647649]
[1646896233092,1.1421,2592.8,2592.0,0.07527865]
[1646896233294,1.1421,2592.8,2592.1,0.91761539]
[1646896233693,1.1421,2592.8,2592.1,1.21761539]
[1646896234330,1.93129,2592.6,2592.1,1.21761539]
[1646896234529,1.93129,2592.6,2592.1,0.3]
[1646896234730,1.93129,2592.6,2592.0,0.07527865]
[1646896235532,1.93129,2592.6,2592.0,1.10713178]
[1646896236537,1.93129,2592.6,2592.0,1.03185313]
[1646896236938,1.01026422,2592.7,2592.4,1.10098838]
[1646896237136,0.96558,2592.7,2592.4,1.10098838]
[1646896237335,0.96558,2592.7,2592.4,0.3]
[1646896237736,0.96558,2592.7,2592.2,1.8299]
[1646896237991,0.96558,2592.7,2592.2,0.855]
[1646896238181,0.96558,2592.7,2592.2,0.9427799]
[1646896238381,0.96558,2592.7,2592.2,1.93200767]
[1646896240684,0.96558,2592.7,2592.2,0.6427799]
[1646896240887,0.96558,2592.7,2592.2,0.9427799]
[1646896241931,0.96558,2592.7,2592.2,0.855]
[1646896242535,0.96558,2592.7,2592.2,0.3]
[1646896242732,0.96558,2592.7,2592.1,0.38212535]
[1646896242933,0.96558,2592.7,2592.1,0.08212535]
[1646896243833,0.96558,2592.7,2592.2,1.14921483]
[1646896244236,0.96558,2592.7,2592.3,0.0800955]
[1646896246082,0.96558,2592.7,2592.2,1.44921483]
[1646896246279,0.96558,2592.7,2592.2,1.51847917]
[1646896247184,0.96558,2592.7,2591.9,1.79047967]
[1646896247384,0.96558,2592.7,2591.9,2.09047967]
[1646896248384,1.10433322,2592.9,2591.9,2.97511394]
[1646896248385,0.96566,2592.5,2591.9,2.97511394]
[1646896250430,0.96566,2592.5,2591.9,2.92511394]
[1646896252040,0.96566,2592.5,2591.9,2.37011394]
[1646896252237,0.04921237,2592.4,2591.9,2.03533427]
[1646896252438,0.04921237,2592.4,2591.9,1.1507]
[1646896253286,0.04921237,2592.4,2591.6,3.40076]
[1646896253287,46.45,2592.3,2591.6,0.0138968]
[1646896253490,3.17993035,2592.2,2591.6,0.0138968]
[1646896253784,46.55647165,2592.0,2590.8,0.01734944]
[1646896253988,0.06001984,2591.9,2590.8,0.01734944]
[1646896254285,0.05285545,2591.8,2590.8,3.51734944]
[1646896254485,0.06761572,2591.7,2591.1,1.02634667]
[1646896255289,1.03379572,2591.7,2591.1,1.02634667]
[1646896256086,1.03379572,2591.7,2591.1,0.97634667]
[1646896256287,1.03379572,2591.7,2591.1,1.27634667]
[1646896256488,4.53379572,2591.7,2591.1,1.27634667]
[1646896257337,1.03379572,2591.7,2591.1,1.27634667]
[1646896258338,3.5,2591.6,2591.1,1.27634667]
[1646896259138,1.93236,2591.8,2591.6,59.0]
[1646896259340,7.06073672,2592.6,2591.6,59.0]
[1646896259341,2.9022,2592.3,2591.6,59.0]
[1646896259540,0.00248094,2591.9,2591.6,59.0]
[1646896259739,0.96618,2591.7,2591.6,59.0]
[1646896260340,0.96618,2591.7,2591.3,6.09443625]
[1646896260583,0.96618,2591.7,2591.3,1.69543625]
[1646896261083,0.96618,2591.7,2591.3,0.555]
[1646896261284,0.96618,2591.7,2591.2,0.07885307]
[1646896261482,0.96618,2591.7,2591.0,0.07733261]
[1646896261885,3.5,2591.6,2591.4,0.00338301]
[1646896262086,4.46618,2591.7,2591.4,0.00338301]
[1646896262286,0.05287019,2591.6,2591.4,0.00338301]
[1646896262785,0.05287019,2591.6,2590.8,0.01830944]
[1646896262988,0.05287019,2591.6,2591.4,0.00338301]
[1646896264230,0.96602,2591.5,2591.4,0.00338301]
[1646896265233,0.96602,2591.5,2590.8,1.69358716]
[1646896265433,0.96602,2591.5,2591.3,0.00338308]
[1646896266433,0.96602,2591.5,2590.8,1.69358716]
[1646896266631,0.96602,2591.5,2591.3,0.00303637]
[1646896267635,0.96602,2591.5,2590.8,1.69358716]
[1646896267838,0.96602,2591.5,2590.8,1.69262716]
[1646896269394,0.96602,2591.5,2590.8,0.01734944]
[1646896269395,0.0519607,2591.4,2590.8,0.01734944]
[1646896269595,0.96611,2591.3,2590.8,0.01734944]
[1646896269795,4.46611,2591.3,2590.8,0.01734944]
[1646896270195,4.46611,2591.3,2590.9,0.00337601]
[1646896270398,0.0512317,2591.2,2590.9,0.00337601]
[1646896270999,0.96611,2591.3,2590.9,0.00337601]
[1646896271196,1.186,2591.7,2590.9,0.555]
[1646896271197,0.96594,2591.5,2590.9,0.555]
[1646896271396,0.96594,2591.5,2591.0,0.08022602]
[1646896272734,0.96594,2591.5,2591.1,0.00337575]
[1646896273735,0.96594,2591.5,2590.9,0.96595]
[1646896274036,0.96594,2591.5,2591.2,0.00337568]
[1646896274435,3.5,2591.4,2591.2,0.00337568]
[1646896274839,0.0546147,2591.3,2590.8,0.01734944]
[1646896275036,1.0207347,2591.3,2591.2,0.00299592]
[1646896276081,1.0207347,2591.3,2591.0,1.12652269]
[1646896276280,1.0207347,2591.3,2591.1,0.00299597]
[1646896277185,1.0207347,2591.3,2591.0,1.12652269]
[1646896277486,1.0207347,2591.3,2591.1,0.00299603]
[1646896277686,0.96612,2591.3,2591.1,0.00299603]
[1646896278385,0.96593,2591.5,2591.0,1.12652269]
[1646896278587,0.96593,2591.5,2591.4,0.90677781]
[1646896279243,0.96593,2591.5,2591.1,0.00273916]
[1646896279642,0.00159561,2591.1,2590.8,1.24840944]
[1646896279840,0.00159561,2591.1,2590.9,7.7192]
[1646896280745,0.00159561,2591.1,2591.0,1.14909515]
[1646896283893,0.0494158,2591.9,2591.1,196.99840439]
[1646896284092,0.0494158,2591.9,2591.2,0.555]
[1646896284093,0.0033075,2591.9,2591.2,0.555]
[1646896284291,0.0033075,2591.9,2591.8,1.199225]
[1646896284493,2.89788,2592.2,2591.8,1.199225]
[1646896284692,0.00330793,2591.9,2591.8,1.199225]
[1646896285692,0.96574,2592.1,2591.8,1.199225]
[1646896285896,0.00330427,2592.0,2591.8,1.199225]
[1646896286935,0.96574,2592.1,2591.8,1.199225]
[1646896287137,0.00330425,2592.0,2591.8,1.199225]
[1646896287538,0.00330425,2592.0,2591.9,0.64043566]
[1646896288137,1.1603,2592.7,2592.0,0.08686376]
[1646896288337,1.1603,2592.7,2592.0,0.64186376]
[1646896288338,0.0024797,2592.1,2592.0,0.64186376]
[1646896288640,0.0024797,2592.1,2592.0,0.555]
[1646896289137,0.05360128,2592.6,2591.8,1.199225]
[1646896289538,0.96900623,2592.2,2591.8,1.199225]
[1646896289738,0.96900623,2592.2,2591.6,0.63716152]
[1646896289936,0.96900623,2592.2,2591.5,0.00275973]
[1646896289938,4.52451674,2592.2,2591.5,0.00275973]
[1646896290336,4.52451674,2592.2,2591.4,0.07477573]
[1646896290585,4.52451674,2592.2,2591.5,0.00275973]
[1646896290586,0.0033063,2592.0,2591.5,0.00275973]
[1646896290784,0.96588,2591.9,2591.5,0.00275973]
[1646896290986,0.96588,2591.9,2591.7,1.22945456]
[1646896291989,0.96918631,2591.9,2591.7,1.22945456]
[1646896292790,0.96572,2592.1,2591.7,1.22945456]
[1646896293189,0.00337167,2591.9,2591.7,1.22945456]
[1646896293990,0.96572,2592.1,2591.7,1.22945456]
[1646896294230,0.00337167,2591.9,2591.7,1.22945456]
[1646896295232,0.96572,2592.1,2591.7,1.22945456]
[1646896295530,0.00337167,2591.9,2591.7,1.22945456]
[1646896296338,0.96572,2592.1,2591.7,1.22945456]
[1646896296634,0.00329115,2591.9,2591.7,1.22945456]
[1646896298782,0.96572,2592.1,2591.7,1.22945456]
[1646896299184,0.04973731,2592.0,2591.5,0.555]
[1646896299383,0.04973731,2592.0,2591.3,4.27816]
[1646896299384,0.96583,2591.9,2591.3,4.27816]
[1646896299584,0.96583,2591.9,2591.3,4.2772]
[1646896299585,1.01079652,2591.9,2591.3,4.2772]
[1646896300387,1.01387388,2591.9,2591.5,0.00276958]
[1646896301289,1.01387388,2591.9,2591.3,4.2772]
[1646896301290,1.01079652,2591.9,2591.3,4.2772]
[1646896301488,1.01387397,2591.9,2591.5,0.00276958]
[1646896302540,1.01387397,2591.9,2591.3,5.17587016]
[1646896302541,1.01079652,2591.9,2591.3,5.17587016]
[1646896302738,1.01401425,2591.9,2591.5,0.00276958]
[1646896303340,3.5,2591.8,2591.5,0.00276958]
[1646896303741,3.5,2591.8,2591.3,0.89867016]
[1646896303940,3.5,2591.8,2591.5,0.00275599]
[1646896304144,5.43189,2591.8,2591.5,0.00275599]
[1646896304540,1.93189,2591.8,2591.5,0.00275599]
[1646896304943,5.43189,2591.8,2591.3,0.89867016]
[1646896305141,5.43189,2591.8,2591.5,0.00275599]
[1646896305791,1.93189,2591.8,2591.5,0.00275599]
[1646896305991,1.93189,2591.8,2591.3,0.89867016]
[1646896306191,5.43189,2591.8,2591.2,1.29055941]
[1646896306492,5.43189,2591.8,2591.5,0.00275599]
[1646896306493,0.04519669,2591.7,2591.5,0.00275599]
[1646896307095,0.96596,2592.0,2591.5,0.00275599]
[1646896307096,8.74159,2592.6,2591.5,0.00275599]
[1646896307295,8.74159,2592.6,2591.4,0.91242731]
[1646896307296,10.04159,2592.6,2591.4,0.91242731]
[1646896307497,10.04159,2592.6,2591.5,0.07980099]
[1646896307795,10.04159,2592.6,2591.5,0.08076099]
[1646896308396,10.04159,2592.6,2591.5,0.07800195]
[1646896309834,10.04375967,2592.6,2591.5,0.07800195]
[1646896310432,7.04375967,2592.6,2591.5,0.00096]
[1646896310632,7.59875967,2592.6,2591.0,0.08806589]
[1646896310833,7.59659,2592.6,2591.0,0.08806589]
[1646896311032,7.59659,2592.6,2591.2,3.0]
[1646896311231,7.59659,2592.6,2591.7,0.00318638]
[1646896311232,10.30856191,2592.6,2591.7,0.00318638]
[1646896311633,10.86059274,2592.6,2591.7,0.00318638]